Cogmind - Beta 14 *** ADVENTURER MODE // 2025.05.03 @ 03:35:37 Player: Themeralderp Result: Destroyed by X-57 Shotgunner with Shotgun Performance ------------- Evolutions (3) 1500 Regions Visited (5) 1000 Robots Destroyed (80) 400 Value Destroyed (1609) 1609 Prototype IDs (13) 260 Alien Tech Used (0) 0 Bonus (511) 511 TOTAL SCORE: 5280 Bonus ------- High Alert Combat Kills 11 Entered DSFs 500 Cogmind --------- Core Integrity 0/700 Matter 265/300 Energy 69/100 System Corruption 0% Temperature Cool (0) Movement Core (150) Ox2 Location -7/DSF Parts ------- > --- POWER (2) -------- (None) > --- PROPULSION (4) --- (None) > --- UTILITY (4) ------ Small Storage Unit > --- WEAPON (3) ------- Blade Saw > --- INVENTORY (8) ---- Airjet Improved Terrain Scanner Improved Light Armor Plating Relay Coupler [Sentry] (25) Relay Coupler [Sentry] (17) Improved Datajack Peak State ------------ > --- POWER ------------ Light Deuterium Engine > --- PROPULSION ------- Hover Unit Improved Hover Unit Improved Hover Unit Aerolev Unit > --- UTILITY ---------- Small Storage Unit Advanced Weight Redist. System Advanced Terrain Scan Processor Hardlight Generator > --- WEAPON ----------- Light EM Pulse Cannon EM Pulse Cannon EM Pulse Cannon > --- INVENTORY -------- Improved Hover Unit Airjet Improved Terrain Scanner Improved Light Armor Plating Heavy EM Pulse Gun Improved EM Pulse Cannon Improved Datajack [Rating: 33] Favorites ----------- Power Improved Ion Engine Engine Improved Ion Engine Power Core Light Nuclear Core Propulsion Hover Unit Leg Aluminum Leg Hover Unit Hover Unit Flight Unit VTOL Module Utility Small Storage Unit Device Improved Terrain Scanner Storage Small Storage Unit Processor Advanced Terrain Scan Processor Protection Hardened Light Armor Plating Weapon EM Pulse Gun Energy Gun EM Pulse Gun Energy Cannon EM Pulse Cannon Ballistic Gun Light Assault Rifle Slashing Weapon Blade Saw Special Melee Weapon Datajack Build | -11 -10 -9 -8 -7 -7 ------- Run | Yrd Mat Mat Mat Fac DSF Slots Evolved 6 | . . 2 2 2 . Power 1 | . . . . 1 . Propulsion 2 | . . 1 1 . . Utility 2 | . . 1 . 1 . Weapon 1 | . . . 1 . . Parts Attached 136 | 46 18 16 46 1 9 Power 14 | 1 5 1 5 . 2 Engine 11 | 1 5 1 2 . 2 Core 3 | . . . 3 . . Reactor . | . . . . . . Propulsion 23 | 5 6 2 10 . . Treads . | . . . . . . Leg 5 | 5 . . . . . Wheel . | . . . . . . Hover 16 | . 4 2 10 . . Flight 2 | . 2 . . . . Utility 30 | 3 2 7 17 1 . Device 17 | 1 1 2 12 1 . Storage 4 | 2 1 . 1 . . Processor 2 | . . 1 1 . . Hackware . | . . . . . . Protection 7 | . . 4 3 . . Artifact . | . . . . . . Weapon 69 | 37 5 6 14 . 7 Energy Gun 40 | 26 2 5 6 . 1 Energy Cannon 10 | . . . 6 . 4 Ballistic Gun 14 | 11 3 . . . . Ballistic Cannon . | . . . . . . Launcher . | . . . . . . Special Weapon . | . . . . . . Impact Weapon . | . . . . . . Slashing Weapon 2 | . . . . . 2 Piercing Weapon . | . . . . . . Special Melee Weapon 3 | . . 1 2 . . Unidentified Prototypes 2 | . . . 2 . . Parts Lost 8 | . . . . . 8 Power 1 | . . . . . 1 Propulsion 3 | . . . . . 3 Utility 1 | . . . . . 1 Weapon 3 | . . . . . 3 Highest Loss Streak 8 | . . . . . 8 To Critical Strikes . | . . . . . . Average Slot Usage (%) 95 | . 94 97 99 92 50 Engine 5 | . 9 11 2 7 3 Core 3 | . . . 6 . . Hover 29 | . 18 33 36 30 13 Flight 2 | . 7 . . . . Device 11 | . 14 15 8 15 8 Storage 10 | . 14 11 9 7 7 Processor 4 | . . 2 8 7 5 Energy Gun 17 | . 18 21 17 . 1 Energy Cannon 5 | . . . 9 23 7 Ballistic Gun 2 | . 9 . . . . Peak Build Rating 33 | 9 13 15 31 33 33 Average Rating 16 | 5 10 13 24 32 18 On Entrance 16 | . 9 10 15 29 33 Naked Turns . | . . . . . . Heaviest Build 31 | 13 19 22 31 31 31 Greatest Support 37 | 20 20 24 30 37 37 Greatest Overweight (x) 3 | 1 1 1 1 . 3 Average Overweight (x) . | . . . . . . Largest Inventory Capacity 8 | 8 8 8 8 8 8 Average Capacity 7 | 7 7 8 8 8 8 Most Carried 8 | 8 8 8 8 7 8 Average Carried 7 | 5 7 7 7 6 7 Final Capacity 8 | 8 8 8 8 8 8 Final Carried 8 | 5 8 8 7 7 6 Class Distribution -------------------- 47% | Mutant 19% | Tank 9% | Scavenger-Skirmisher 7% | Scavenger-Tank 5% | Sprinter 5% | Skirmisher 3% | Scavenger-Mutant Dominant Class ---------------- Mutant | -10/Materials Mutant | -9/Materials Tank | -8/Materials Tank | -7/Factory Mutant | -7/DSF Resources | -11 -10 -9 -8 -7 -7 ----------- Run | Yrd Mat Mat Mat Fac DSF Matter Collected 1409 | 575 162 190 460 . 22 Remotely . | . . . . . . Salvage Created 2993 | 272 585 695 1327 . 114 Parts 187 | 31 38 32 76 . 10 Haulers Intercepted 5 | . 1 2 2 . . Recyclers Shooed 2 | . 2 . . . . Parts Field Recycled . | . . . . . . Retrieved Matter . | . . . . . . Parts Self-Destructed . | . . . . . . Prevented . | . . . . . . Kills | -11 -10 -9 -8 -7 -7 ------- Run | Yrd Mat Mat Mat Fac DSF Combat Hostiles Destroyed 43 | . 12 11 17 . 3 Melee 1 | . . . . . 1 Guns 29 | . 12 7 10 . . Cannons 7 | . . . 5 . 2 AOE 4 | . . 3 1 . . Classes Destroyed 13 | 3 4 2 2 . 2 Worker 8 | 4 1 1 2 . . Tunneler 7 | 7 . . . . . Hauler 5 | . 1 2 2 . . Recycler 8 | 1 3 2 2 . . Operator 2 | . . . 2 . . Watcher 7 | . 3 . 4 . . Swarmer 17 | . 11 3 3 . . Cutter 2 | . . . . . 2 Grunt 12 | . 1 4 7 . . Brawler 1 | . . 1 . . . Sentry 9 | . . 3 6 . . Specialist 1 | . . . . . 1 Hunter 1 | . . . 1 . . Best Kill Streak 12 | 2 12 4 3 . 1 Combat Bots Only 9 | . 9 4 2 . 1 Max Kills in Single Turn 2 | 1 2 2 2 . 1 Gunslinging 1 | . 1 . . . . Exploded 2 | . . 2 1 . . Melee 1 | . . . . . 1 Uniques/NPCs Destroyed . | . . . . . . Combat | -11 -10 -9 -8 -7 -7 -------- Run | Yrd Mat Mat Mat Fac DSF Hostile Shots Fired 282 | . 70 25 47 . 140 Missed 81 | . 14 10 13 . 44 Damage Taken 2078 | . 362 133 356 . 1227 Core 847 | . 107 . 37 . 703 Absorbed by Shields 60 | . . . 60 . . Ignored by Resistances 632 | . 113 42 117 . 360 Regen/Repaired (Parts) 70 | . 41 19 10 . . Core Remaining (%) 87 | 100 57 100 93 . . Volleys Fired 173 | 36 40 41 48 . 8 Largest 3 | 2 2 2 3 . 3 Hottest 182 | 80 80 85 182 . 164 Shots Fired 358 | 49 77 82 140 . 10 Gun 330 | 49 77 82 117 . 5 Cannon 28 | . . . 23 . 5 Launcher . | . . . . . . Special . | . . . . . . Kinetic 45 | 6 39 . . . . Thermal 68 | 36 32 . . . . Explosive . | . . . . . . Electromagnetic 245 | 7 6 82 140 . 10 Robot Hit Streak 24 | 12 11 18 24 . 3 Robot Miss Streak 5 | 1 2 5 4 . 2 Penetration Max . | . . . . . . Secondary Targets 6 | . 6 . . . . Max Gunslinging Chain 1 | . 1 . . . . Shots Hit Robots 230 | 24 54 49 91 . 12 Core Hits 116 | 13 30 22 45 . 6 Critical Kills . | . . . . . . Critical Parts Destroyed . | . . . . . . Critical Strikes 5 | . . . 1 . 4 Corrupt 1 | . . . 1 . . Sever 4 | . . . . . 4 Melee Attacks 15 | . . 4 5 . 6 Impact . | . . . . . . Slashing 6 | . . . . . 6 Piercing . | . . . . . . Sneak Attacks 9 | . . 4 5 . . Combat Hostiles . | . . . . . . Follow-up Attacks . | . . . . . . Damage Inflicted 3635 | 256 553 1016 1600 . 210 Guns 2623 | 256 553 588 1186 . 40 Cannons 324 | . . . 258 . 66 Explosions 584 | . . 428 156 . . Melee 101 | . . . . . 101 Ramming 3 | . . . . . 3 Kinetic 251 | 18 233 . . . . Thermal 1074 | 238 252 428 156 . . Explosive . | . . . . . . Electromagnetic 2206 | . 68 588 1444 . 106 Impact . | . . . . . . Slashing 101 | . . . . . 101 Piercing . | . . . . . . Highest Corruption . | . . . . . . Average Corruption . | . . . . . . Corruption Purged . | . . . . . . Corruption Blocked . | . . . . . . Overload Shots . | . . . . . . Overflow Damage 52 | . . 49 3 . . Projectiles 3 | . . . 3 . . Explosions 49 | . . 49 . . . Melee . | . . . . . . Knockbacks . | . . . . . . Impact . | . . . . . . Kinetic . | . . . . . . Secondary . | . . . . . . Self-Inflicted Damage 27 | . . 22 4 . 1 Shots 2 | . . 1 1 . . Rammed 1 | . . . . . 1 Targets Rammed 1 | . . . . . 1 Kicked . | . . . . . . Crushed . | . . . . . . Highest Temperature 300 | 126 141 300 226 . 29 Average Temperature 64 | 48 38 76 68 . 19 Received Heat Transfer 304 | . 6 39 133 . 126 Siege Activations . | . . . . . . Robots Corrupted 2 | . . 1 1 . . Combat Hostiles 2 | . . 1 1 . . Parts Fried 9 | . . . 9 . . Impact Corruptions . | . . . . . . Robots Melted . | . . . . . . Combat Hostiles . | . . . . . . Parts Melted 1 | . 1 . . . . Heat Transferred 1575 | 550 575 350 100 . . Parts Sabotaged . | . . . . . . Parts Stolen . | . . . . . . Parts Stripped . | . . . . . . Power Chain Reactions 5 | . . 2 3 . . Alert | -11 -10 -9 -8 -7 -7 ------- Run | Yrd Mat Mat Mat Fac DSF Peak Influence 434 | 45 310 434 283 20 30 Initial 111 | . 8 . 111 6 12 Average 107 | 11 103 268 111 18 12 Maximum Alert Level 2 | . 1 2 1 . . Low Security (%) 81 | 100 94 19 83 100 100 Level 1 16 | . 5 63 16 . . Level 2 2 | . . 17 . . . Level 3 . | . . . . . . Level 4 . | . . . . . . Level 5 . | . . . . . . High Security . | . . . . . . Max Security . | . . . . . . Squads Dispatched 6 | . . 2 2 . 2 Investigation 2 | . . 1 1 . . Extermination . | . . . . . . Reinforcement 4 | . . 1 1 . 2 Assault . | . . . . . . Garrison . | . . . . . . Intercept . | . . . . . . Searches Triggered . | . . . . . . Construction Impeded . | . . . . . . Haulers Reinforced . | . . . . . . Active Scanning Responses . | . . . . . . Cargo Convoy Interrupts . | . . . . . . Stealth | -11 -10 -9 -8 -7 -7 --------- Run | Yrd Mat Mat Mat Fac DSF Distress Signals 7 | . 4 2 1 . . Communications Jammed . | . . . . . . Distress Signals . | . . . . . . Times Spotted 76 | . 23 20 26 . 7 Peak Tracking Total 9 | . 9 6 3 . 6 Tactical Retreats 7 | . . 2 4 . 1 Traps | -11 -10 -9 -8 -7 -7 ------- Run | Yrd Mat Mat Mat Fac DSF Traps Triggered 2 | . . 1 . . 1 Indirectly . | . . . . . . Trap Hack Attempts . | . . . . . . Triggered . | . . . . . . Disarmed . | . . . . . . Reprogrammed . | . . . . . . Reused . | . . . . . . Traps Extracted . | . . . . . . Installed . | . . . . . . Triggered . | . . . . . . Machines | -11 -10 -9 -8 -7 -7 ---------- Run | Yrd Mat Mat Mat Fac DSF Machines Disabled 5 | . . 4 1 . . Max in Single Turn 2 | . . 2 1 . . Garrison Access 1 | . . . 1 . . Machines Repaired . | . . . . . . Machines Dismantled . | . . . . . . Machines Sabotaged . | . . . . . . Overloaded Fab Kills . | . . . . . . Hacking | -11 -10 -9 -8 -7 -7 --------- Run | Yrd Mat Mat Mat Fac DSF Machines Accessed 26 | . 7 4 13 2 . Terminals 18 | . 5 2 9 2 . Fabricators . | . . . . . . Repair Stations 4 | . 1 2 1 . . Recycling Units 2 | . 1 . 1 . . Scanalyzers 1 | . . . 1 . . Garrison Access 1 | . . . 1 . . Total Hacks 82 | . 23 9 44 6 . Successful 51 | . 18 8 23 2 . Failed 30 | . 5 1 20 4 . Catastrophic 2 | . . . 2 . . Database Lockouts 1 | . . . 1 . . Manual 22 | . 2 2 18 . . Terminals 63 | . 18 5 34 6 . Fabricators . | . . . . . . Repair Stations 9 | . 2 4 3 . . Recycling Units 5 | . 3 . 2 . . Scanalyzers 2 | . . . 2 . . Garrison Access 3 | . . . 3 . . Terminal Hacks 37 | . 13 5 17 2 . Record 1 | . . . 1 . . Part Schematic 1 | . . . 1 . . Robot Analysis 3 | . 1 1 1 . . Prototype ID Bank 7 | . 2 . 5 . . Open DSF 1 | . . . . 1 . Branch Access Points 3 | . 1 . 1 1 . Terminal Index 1 | . . 1 . . . Alert Level 2 | . 1 1 . . . Unreport Threat 2 | . . . 2 . . Locate Traps 5 | . 2 1 2 . . Dispatch Records 2 | . 1 . 1 . . Transport Status 1 | . 1 . . . . Hauler Manifests 2 | . 1 . 1 . . Registered Components 2 | . 1 . 1 . . Registered Prototypes 1 | . 1 . . . . Zone Layout 3 | . 1 1 1 . . Fabricator Hacks . | . . . . . . Repair Station Hacks 6 | . 2 2 2 . . Scan Component 3 | . 1 1 1 . . Repair 3 | . 1 1 1 . . Recycling Unit Hacks 3 | . 3 . . . . Process 1 | . 1 . . . . Retrieve Matter 2 | . 2 . . . . Scanalyzer 2 | . . . 2 . . Insert Component 1 | . . . 1 . . Analyze 1 | . . . 1 . . Garrison Access Hacks 1 | . . . 1 . . Seal Access 1 | . . . 1 . . Unauthorized Hacks 2 | . . 1 1 . . Terminals . | . . . . . . Fabricators . | . . . . . . Repair Stations 1 | . . 1 . . . Mechanics 1 | . . 1 . . . Recycling Units 1 | . . . 1 . . Recyclers 1 | . . . 1 . . Scanalyzers . | . . . . . . Garrison Access . | . . . . . . Data Cores Recovered 1 | . . . 1 . . Used 1 | . . . 1 . . Hacking Detections 24 | . 7 2 13 2 . Full Trace Events 2 | . . 1 1 . . Feedback Events . | . . . . . . Feedback Blocked . | . . . . . . Robot Schematics Acquired . | . . . . . . Robots Built . | . . . . . . Authchips . | . . . . . . Time . | . . . . . . Total Robot Build Rating . | . . . . . . Part Schematics Acquired 2 | . . . 2 . . Parts Built . | . . . . . . Authchips . | . . . . . . Time . | . . . . . . Total Part Build Rating . | . . . . . . Parts Repaired 3 | . 1 1 1 . . Time 90 | . 26 26 38 . . Parts Recycled . | . . . . . . Recycled Matter 126 | . 126 . . . . Retrieved Matter 126 | . 126 . . . . Retrieved Components . | . . . . . . Parts Scanalyzed 1 | . . . 1 . . Part Schematics Acquired 1 | . . . 1 . . Parts Damaged 1 | . . . 1 . . Bothacking | -11 -10 -9 -8 -7 -7 ------------ Run | Yrd Mat Mat Mat Fac DSF Used RIF Installer . | . . . . . . Robots Hacked 3 | . . 1 2 . . Non-combat 3 | . . 1 2 . . Combat . | . . . . . . Robot Hacks Applied 5 | . . 2 3 . . parse_system 1 | . . 1 . . . no_distress 3 | . . 1 2 . . check_alert 1 | . . . 1 . . Relay Couplers Released . | . . . . . . Fabnet Peak Effective % . | . . . . . . Robots Rewired . | . . . . . . Allies Hacked . | . . . . . . Hacks Repelled . | . . . . . . Allies | -11 -10 -9 -8 -7 -7 -------- Run | Yrd Mat Mat Mat Fac DSF Total Allies . | . . . . . . Largest Group . | . . . . . . Highest-Rated Group . | . . . . . . Highest-Rated Ally . | . . . . . . Total Orders . | . . . . . . Ally Attacks . | . . . . . . Total Damage . | . . . . . . Kills . | . . . . . . Allies Corrupted . | . . . . . . Allies Melted . | . . . . . . Intel | -11 -10 -9 -8 -7 -7 ------- Run | Yrd Mat Mat Mat Fac DSF Robot Analysis Total 3 | . 1 1 1 . . Derelict Logs Recovered . | . . . . . . Drone Launches . | . . . . . . Drone Recoveries . | . . . . . . Exploration | -11 -10 -9 -8 -7 -7 ------------- Run | Yrd Mat Mat Mat Fac DSF Turns Passed 4025 | 755 897 537 1669 45 122 Spaces Moved 2506 | 359 569 431 989 83 75 Core 25 | 13 . . . . 12 Treads . | . . . . . . Legs 387 | 346 41 . . . . Wheels . | . . . . . . Hover 1966 | . 400 431 989 83 63 Flight 128 | . 128 . . . . Fastest Speed 32 | 50 32 52 45 45 45 Average Speed 74 | 118 91 55 61 45 56 Slowest Speed 200 | 190 120 112 105 45 200 Overloaded Moves . | . . . . . . Propulsion Burnouts . | . . . . . . Robots Hopped . | . . . . . . Cave-ins Triggered . | . . . . . . Exploration Rate (%) 39 | 11 70 26 69 1 57 Regions Visited 5 Branch Regions . Pre-discovered Areas . | . . . . . . Known Exits Taken 1 | . . . . 1 . Unknown Exits Taken 4 | 1 1 1 1 . . Scrap Searched . | . . . . . . Spaces Dug . | . . . . . . Terrain Destroyed 71 | . . 59 12 . . Melee . | . . . . . . Projectile . | . . . . . . AOE 71 | . . 59 12 . . Terrain Rammed . | . . . . . . Walls Destroyed . | . . . . . . Machines Disabled . | . . . . . . Actions | -11 -10 -9 -8 -7 -7 --------- Run | Yrd Mat Mat Mat Fac DSF Total 4365 | 666 885 647 1943 90 134 Wait 1282 | 143 204 130 781 6 18 Move 2501 | 358 568 430 988 82 75 Hop . | . . . . . . Pick Up 119 | 30 28 14 38 1 8 Fast Attach . | . . . . . . Attach 92 | 46 13 10 13 1 9 Detach 47 | 35 6 4 1 . 1 Swap 44 | . 5 6 33 . . Drop 84 | 18 21 8 36 . 1 Fire 173 | 36 40 41 48 . 8 Melee 15 | . . 4 5 . 6 Ram 1 | . . . . . 1 Kick . | . . . . . . Crush . | . . . . . . Escape Stasis 7 | . . . . . 7 Rewire . | . . . . . . Trap . | . . . . . . Miscellaneous . | . . . . . . Route ------- -11/Scrapyard -10/Materials (discovered 4 exits: *Mat x2 / Min x2) -9/Materials -8/Materials (discovered 2 exits: *Fac x2) -7/Factory (discovered 3 exits: Low x2 / DSF) -7/DSF History --------- Turn | Location | Event 11 | -11/Scrapyard | Discovered new exit (range 15) 756 | -11/Scrapyard | Entered Materials 767 | -10/Materials | Identified exit to Mines 771 | -10/Materials | Build established: Mutant 1153 | -10/Materials | Destroyed 9 combat bots 1213 | -10/Materials | Discovered new exit (range 15) 1457 | -10/Materials | Repaired Sml. Storage Unit 1600 | -10/Materials | Discovered new exit (range 16) 1653 | -10/Materials | Entered another Materials area 1653 | -9/Materials | Evolved 2 slots: Propulsion x1, Utility x1 1892 | -9/Materials | Repaired Hover Unit 1961 | -9/Materials | Discovered new exit (range 12) 2190 | -9/Materials | Entered another Materials area 2190 | -8/Materials | Evolved 2 slots: Propulsion x1, Weapon x1 2567 | -8/Materials | Repaired Imp. Terrain Scanner 3318 | -8/Materials | Discovered new exit (range 13) 3546 | -8/Materials | Build established: Tank 3793 | -8/Materials | Central database locked down 3794 | -8/Materials | Discovered new exit (range 12) 3859 | -8/Materials | Entered Factory 3859 | -7/Factory | Evolved 2 slots: Power x1, Utility x1 3864 | -7/Factory | Identified exit to Lower Caves 3904 | -7/Factory | Identified exit to DSF 3904 | -7/Factory | Entered DSF 3932 | -7/DSF | Additional patrols routed to DSF 4003 | -7/DSF | Core integrity fell below 50% 4015 | -7/DSF | Core integrity fell below 20% 4026 | -7/DSF | Destroyed by X-57 Shotgunner with Shotgun Last Messages --------------- 03995_ C-17 Slicer destroyed. 03999_ Imp. EM Pulse Cannon destroyed. 04000_ Acquired 22 matter. 04001_ Adv. Terrain Scan Processor severed. 04002_ Acquired Blade Saw. 04002_ Slug penetrates X-62 Marksman. 04003_ Penetrated by Slug. 04004_ C-17 Slicer Lgt. Nuclear Core severed. 04005_ Penetrated by Slug. 04007_ C-17 Slicer Surge Thruster severed. 04008_ Penetrated by Slug. 04010_ C-17 Slicer Blade Saw severed. 04011_ Penetrated by Slug. 04014_ Slug penetrates X-62 Marksman. 04015_ Blade Saw destroyed. 04017_ Acquired Blade Saw. 04019_ X-57 Shotgunner Nuclear Core severed. 04019_ Slug penetrates X-57 Shotgunner. 04022_ Slug penetrates Wall. 04023_ X-62 Marksman destroyed. Map ----- +----------------------------------------------------+ | | | | | | | | | | | | | | | | | | | | | | | | | | | | | | | | | ??????????????????????????????????????????? | | ??????????????????????????????????????????? | | ??????????????????????????????????????????? | | ??????????????????????????????????????????? | | ?????????""???????????????????????????????? | | ?????????#"???????????????????????????????? | | ??????####"##???????#########?????????????? | | ??????#"""""#########=]]]]!!#?????????????? | | ??????#"""""##!!#!!=#!]]]] !#***#?????????? | | ????"##"" =@![=c ????? | | ????""""" [*%==/ ????? | | ?????##"" ## # x!### ### #**##?????? | | ??????### ### # !#?# #??? #??#??????? | | ???????## ##########?! //???##?????????? | | ???????#! !!#????????! //#?????????????? | | ???????#! !!#????????! //#?????????????? | | ???????## ###????????# ###?????????????? | | ???????#! !!#????????? !???????????????? | | ???????#! !!#????????? !???????????????? | | ???????# ^^!!#????????? !!??????????????? | | ??????### ^######?????? ##??????????????? | | ??????# #? #??!#?? #???????????????? | | ??????# ## #!!!## ???????????????? | | ??????# ? ???????????????? | | ??????# H?????????????????? | | ??????# ?????????????????? | | ??????# ## "!!!## ??????????????????? | | ??????# #? #!!!#?????????????????????? | | ??????### ######?###?????????????????????? | | ???????#= #????????????????????????????? | | ???????#= #????????????????????????????? | | ???????#= #????????????????????????????? | | ???????## ###????????????????????????????? | | ???????# ==#????????????????????????????? | +----------------------------------------------------+ Best States ------------- Heat Dissipation 34 Energy Generation 14 Energy Capacity 265 Matter Stores 300 Matter Capacity 300 Sight Range 16 Terrain Scan Range 16 Terrain Scan Density 210 Additional Mass Support 9 Armor Coverage 150 Resistance: KI 20 Resistance: TH 20 Resistance: EX 20 Resistance: EM 20 Resistance: I 20 Resistance: S 20 Resistance: P 20 Evasion (%) 63 Offensive Hacking 10 Item Schematics ----------------- Airjet | -8/Materials | Hacked EM Pulse Cannon | -8/Materials | Scanalyzed Robot Schematics ------------------ None Fabricated ------------ Nothing Alien Tech Used ----------------- None Achievements -------------- None Challenges ------------ None Game ------ Seed InertialExoskeletonTerrabomb Manual? 0 Play Time 01:25:15 Cumulative 69.6 hours Start 2025.05.03 @ 02:03:24 End 2025.05.03 @ 03:35:37 Sessions 1 Manual Loads 0 Difficulty Adventurer Special Mode None Game No. 51 Rogue 38 Adventurer 13 Explorer 0 Win Type - Total 0 Types 0/0/0/0/0/0/0/0/0 Lore% 29 Gallery% 43 Achievement% 41 Wizard Run 0 Options --------- Layout 1 ASCII 0 Keyboard 1 Movement Numpad Keybinds 0 Fullscreen 2 Font 24/Smallcaps Map View 50x35 Zoom Use 0% Tactical HUD 1 Map Filters NONE Filters NONE Steam 1 RUN: b40caef3-2c44-41d8-bc1c-bdebe2ec77b6